{"text_format":"1","workbook":"xlsx","n_sheets":2,"sheets":["CORP.PROC001.Plano","Monitoramento"],"not_rendered":{"charts":2,"images":5,"macros":1,"external_links":0,"defined_names":4,"comments":0,"pivot_tables":0},"unopened":[],"bounds":{"document_bytes":16777216,"sheet_cells":100000,"rows_first":2000,"rows_last":500,"rows_between":2000,"halvings":0,"cell_chars":16384,"cell_head_chars":4096},"cells_cut":0,"cells_raw":0,"read":"whole","date_system":"1900"}

{"sheet":"CORP.PROC001.Plano","index":0,"n_rows":106,"n_cols":28,"rows_kept":106,"cut":false,"hidden":false,"merged":[[0,2,1,25],[0,26,1,27],[0,0,1,1],[100,0,100,2],[101,0,101,1],[23,2,24,2],[25,0,26,0],[25,2,26,2],[35,0,36,0],[35,2,36,2],[29,0,30,0],[29,1,30,1],[29,2,30,2],[27,1,28,1],[25,1,26,1],[47,2,48,2],[49,2,50,2],[43,2,44,2],[31,2,32,2],[33,2,34,2],[37,2,38,2],[69,0,70,0],[69,2,70,2],[7,0,8,0],[7,2,8,2],[41,0,42,0],[41,2,42,2],[27,0,28,0],[27,2,28,2],[39,1,40,1],[9,0,10,0],[9,2,10,2],[11,0,12,0],[11,2,12,2],[13,0,14,0],[13,2,14,2],[15,0,16,0],[15,2,16,2],[17,0,18,0],[17,2,18,2],[19,0,20,0],[19,2,20,2],[21,0,22,0],[21,2,22,2],[37,0,38,0],[23,0,24,0],[7,1,8,1],[51,2,52,2],[45,1,46,1],[43,0,44,0],[43,1,44,1],[39,0,40,0],[39,2,40,2],[45,0,46,0],[45,2,46,2],[9,1,10,1],[11,1,12,1],[13,1,14,1],[15,1,16,1],[17,1,18,1],[19,1,20,1],[21,1,22,1],[23,1,24,1],[31,0,32,0],[31,1,32,1],[51,1,52,1],[47,0,48,0],[49,0,50,0],[63,1,64,1],[33,0,34,0],[33,1,34,1],[41,1,42,1],[35,1,36,1],[37,1,38,1],[47,1,48,1],[49,1,50,1],[51,0,52,0],[65,1,66,1],[55,2,56,2],[53,0,54,0],[53,2,54,2],[57,0,58,0],[57,1,58,1],[57,2,58,2],[59,0,60,0],[59,1,60,1],[59,2,60,2],[61,2,62,2],[63,0,64,0],[63,2,64,2],[55,0,56,0],[53,1,54,1],[55,1,56,1],[97,1,98,1],[87,0,88,0],[87,2,88,2],[89,0,90,0],[89,2,90,2],[87,1,88,1],[89,1,90,1],[93,0,94,0],[93,2,94,2],[91,0,92,0],[91,1,92,1],[91,2,92,2],[95,1,96,1],[95,0,96,0],[95,2,96,2],[97,0,98,0],[97,2,98,2],[93,1,94,1],[71,1,72,1],[61,0,62,0],[79,0,80,0],[79,2,80,2],[81,0,82,0],[81,2,82,2],[83,0,84,0],[83,2,84,2],[79,1,80,1],[81,1,82,1],[83,1,84,1],[69,1,70,1],[71,0,72,0],[71,2,72,2],[67,1,68,1],[67,0,68,0],[67,2,68,2],[77,0,78,0],[77,1,78,1],[77,2,78,2],[73,0,74,0],[65,0,66,0],[65,2,66,2],[61,1,62,1],[79,3,80,3],[81,3,82,3],[83,3,84,3],[77,3,78,3],[49,3,50,3],[51,3,52,3],[53,3,54,3],[55,3,56,3],[57,3,58,3],[59,3,60,3],[61,3,62,3],[63,3,64,3],[65,3,66,3],[7,3,8,3],[9,3,10,3],[11,3,12,3],[13,3,14,3],[15,3,16,3],[17,3,18,3],[19,3,20,3],[21,3,22,3],[23,3,24,3],[25,3,26,3],[27,3,28,3],[29,3,30,3],[31,3,32,3],[33,3,34,3],[35,3,36,3],[37,3,38,3],[39,3,40,3],[41,3,42,3],[43,3,44,3],[45,3,46,3],[47,3,48,3],[67,3,68,3],[69,3,70,3],[109,0,110,1],[73,1,74,1],[73,2,74,2],[73,3,74,3],[75,0,76,0],[75,1,76,1],[75,2,76,2],[75,3,76,3],[95,3,96,3],[97,3,98,3],[85,3,86,3],[87,3,88,3],[89,3,90,3],[93,3,94,3],[91,3,92,3],[85,0,86,0],[85,1,86,1],[85,2,86,2],[71,3,72,3]]}
[null,null,"RELATÓRIO DE ACOMPANHAMENTO\nPROJETO DE OTIMIZAÇÃO",null,null,null,null,null,null,null,null,null,null,null,null,null,null,null,null,null,null,null,null,null,null,null,"V01"]
[]
[null,null,null,null,null,null,null,null,null,null,null,null,null,null,null,null,null,null,null,null,null,null,"Planejado",null,null,"Iniciado"]
[null,null,null,null,null,null,null,null,null,null,null,null,null,null,null,null,null,null,null,null,null,null,"Replanejado",null,null,"Realizado"]
[null,null,null,null,null,null,null,null,null,null,null,null,null,null,null,null,null,null,null,null,null,null,"Atrasado",null,null,"Cancelado"]
[]
["Item","Responsável","Ação","Observações /Pendências","2014-02-28","2014-03-31","2014-04-30","2014-05-31","2014-06-30","2014-07-31","2014-08-31","2014-09-30","2014-10-31","2014-11-30","2014-12-31","2015-01-31","2015-02-28","2015-03-31","2015-04-30","2015-05-31","2015-06-30","2015-07-31","2015-08-31","2015-09-30","2015-10-31","2015-11-30","2015-12-31","Acumulado"]
["1.1",null,null,null,null,null,null,null,null,null,null,null,null,null,null,null,null,null,null,null,null,null,null,null,null,null,null,{"$f":"SUM(E8:AA8)","v":0}]
[null,null,null,null,null,null,null,null,null,null,null,null,null,null,null,null,null,null,null,null,null,null,null,null,null,null,null,0]
["1.2",null,null,null,null,null,null,null,null,null,null,null,null,null,null,null,null,null,null,null,null,null,null,null,null,null,null,0]
[null,null,null,null,null,null,null,null,null,null,null,null,null,null,null,null,null,null,null,null,null,null,null,null,null,null,null,0]
["1.3",null,null,null,null,null,null,null,null,null,null,null,null,null,null,null,null,null,null,null,null,null,null,null,null,null,null,0]
[null,null,null,null,null,null,null,null,null,null,null,null,null,null,null,null,null,null,null,null,null,null,null,null,null,null,null,0]
["1.4",null,null,null,null,null,null,null,null,null,null,null,null,null,null,null,null,null,null,null,null,null,null,null,null,null,null,0]
[null,null,null,null,null,null,null,null,null,null,null,null,null,null,null,null,null,null,null,null,null,null,null,null,null,null,null,0]
["1.5",null,null,null,null,null,null,null,null,null,null,null,null,null,null,null,null,null,null,null,null,null,null,null,null,null,null,0]
[null,null,null,null,null,null,null,null,null,null,null,null,null,null,null,null,null,null,null,null,null,null,null,null,null,null,null,0]
["2.1",null,null,null,null,null,null,null,null,null,null,null,null,null,null,null,null,null,null,null,null,null,null,null,null,null,null,0]
[null,null,null,null,null,null,null,null,null,null,null,null,null,null,null,null,null,null,null,null,null,null,null,null,null,null,null,0]
["2.2",null,null,null,null,null,null,null,null,null,null,null,null,null,null,null,null,null,null,null,null,null,null,null,null,null,null,0]
[null,null,null,null,null,null,null,null,null,null,null,null,null,null,null,null,null,null,null,null,null,null,null,null,null,null,null,0]
["2.3",null,null,null,null,null,null,null,null,null,null,null,null,null,null,null,null,null,null,null,null,null,null,null,null,null,null,0]
[null,null,null,null,null,null,null,null,null,null,null,null,null,null,null,null,null,null,null,null,null,null,null,null,null,null,null,0]
["3.1",null,null,null,null,null,null,null,null,null,null,null,null,null,null,null,null,null,null,null,null,null,null,null,null,null,null,0]
[null,null,null,null,null,null,null,null,null,null,null,null,null,null,null,null,null,null,null,null,null,null,null,null,null,null,null,0]
["3.2",null,null,null,null,null,null,null,null,null,null,null,null,null,null,null,null,null,null,null,null,null,null,null,null,null,null,0]
[null,null,null,null,null,null,null,null,null,null,null,null,null,null,null,null,null,null,null,null,null,null,null,null,null,null,null,0]
["3.2.1",null,null,null,null,null,null,null,null,null,null,null,null,null,null,null,null,null,null,null,null,null,null,null,null,null,null,0]
[null,null,null,null,null,null,null,null,null,null,null,null,null,null,null,null,null,null,null,null,null,null,null,null,null,null,null,0]
["3.2.2",null,null,null,null,null,null,null,null,null,null,null,null,null,null,null,null,null,null,null,null,null,null,null,null,null,null,0]
[null,null,null,null,null,null,null,null,null,null,null,null,null,null,null,null,null,null,null,null,null,null,null,null,null,null,null,0]
["3.2.3",null,null,null,null,null,null,null,null,null,null,null,null,null,null,null,null,null,null,null,null,null,null,null,null,null,null,0]
[null,null,null,null,null,null,null,null,null,null,null,null,null,null,null,null,null,null,null,null,null,null,null,null,null,null,null,0]
["3.2.4",null,null,null,null,null,null,null,null,null,null,null,null,null,null,null,null,null,null,null,null,null,null,null,null,null,null,0]
[null,null,null,null,null,null,null,null,null,null,null,null,null,null,null,null,null,null,null,null,null,null,null,null,null,null,null,0]
["3.3",null,null,null,null,null,null,null,null,null,null,null,null,null,null,null,null,null,null,null,null,null,null,null,null,null,null,0]
[null,null,null,null,null,null,null,null,null,null,null,null,null,null,null,null,null,null,null,null,null,null,null,null,null,null,null,0]
["3.4",null,null,null,null,null,null,null,null,null,null,null,null,null,null,null,null,null,null,null,null,null,null,null,null,null,null,0]
[null,null,null,null,null,null,null,null,null,null,null,null,null,null,null,null,null,null,null,null,null,null,null,null,null,null,null,0]
["3.5",null,null,null,null,null,null,null,null,null,null,null,null,null,null,null,null,null,null,null,null,null,null,null,null,null,null,{"$f":"SUM(E40:AA40)","v":0}]
[null,null,null,null,null,null,null,null,null,null,null,null,null,null,null,null,null,null,null,null,null,null,null,null,null,null,null,0]
["3.6",null,null,null,null,null,null,null,null,null,null,null,null,null,null,null,null,null,null,null,null,null,null,null,null,null,null,0]
[null,null,null,null,null,null,null,null,null,null,null,null,null,null,null,null,null,null,null,null,null,null,null,null,null,null,null,0]
["4.1",null,null,null,null,null,null,null,null,null,null,null,null,null,null,null,null,null,null,null,null,null,null,null,null,null,null,0]
[null,null,null,null,null,null,null,null,null,null,null,null,null,null,null,null,null,null,null,null,null,null,null,null,null,null,null,0]
["4.2",null,null,null,null,null,null,null,null,null,null,null,null,null,null,null,null,null,null,null,null,null,null,null,null,null,null,0]
[null,null,null,null,null,null,null,null,null,null,null,null,null,null,null,null,null,null,null,null,null,null,null,null,null,null,null,0]
["4.3",null,null,null,null,null,null,null,null,null,null,null,null,null,null,null,null,null,null,null,null,null,null,null,null,null,null,0]
[null,null,null,null,null,null,null,null,null,null,null,null,null,null,null,null,null,null,null,null,null,null,null,null,null,null,null,0]
["5.1",null,null,null,null,null,null,null,null,null,null,null,null,null,null,null,null,null,null,null,null,null,null,null,null,null,null,0]
[null,null,null,null,null,null,null,null,null,null,null,null,null,null,null,null,null,null,null,null,null,null,null,null,null,null,null,0]
["6.1",null,null,null,null,null,null,null,null,null,null,null,null,null,null,null,null,null,null,null,null,null,null,null,null,null,null,0]
[null,null,null,null,null,null,null,null,null,null,null,null,null,null,null,null,null,null,null,null,null,null,null,null,null,null,null,0]
["7.1",null,null,null,null,null,null,null,null,null,null,null,null,null,null,null,null,null,null,null,null,null,null,null,null,null,null,0]
[null,null,null,null,null,null,null,null,null,null,null,null,null,null,null,null,null,null,null,null,null,null,null,null,null,null,null,0]
["8.1",null,null,null,null,null,null,null,null,null,null,null,null,null,null,null,null,null,null,null,null,null,null,null,null,null,null,0]
[null,null,null,null,null,null,null,null,null,null,null,null,null,null,null,null,null,null,null,null,null,null,null,null,null,null,null,0]
["8.2",null,null,null,null,null,null,null,null,null,null,null,null,null,null,null,null,null,null,null,null,null,null,null,null,null,null,0]
[null,null,null,null,null,null,null,null,null,null,null,null,null,null,null,null,null,null,null,null,null,null,null,null,null,null,null,0]
["8.3",null,null,null,null,null,null,null,null,null,null,null,null,null,null,null,null,null,null,null,null,null,null,null,null,null,null,0]
[null,null,null,null,null,null,null,null,null,null,null,null,null,null,null,null,null,null,null,null,null,null,null,null,null,null,null,0]
["9.1",null,null,null,null,null,null,null,null,null,null,null,null,null,null,null,null,null,null,null,null,null,null,null,null,null,null,0]
[null,null,null,null,null,null,null,null,null,null,null,null,null,null,null,null,null,null,null,null,null,null,null,null,null,null,null,0]
["9.2",null,null,null,null,null,null,null,null,null,null,null,null,null,null,null,null,null,null,null,null,null,null,null,null,null,null,0]
[null,null,null,null,null,null,null,null,null,null,null,null,null,null,null,null,null,null,null,null,null,null,null,null,null,null,null,0]
["9.3",null,null,null,null,null,null,null,null,null,null,null,null,null,null,null,null,null,null,null,null,null,null,null,null,null,null,0]
[null,null,null,null,null,null,null,null,null,null,null,null,null,null,null,null,null,null,null,null,null,null,null,null,null,null,null,0]
["10.1",null,null,null,null,null,null,null,null,null,null,null,null,null,null,null,null,null,null,null,null,null,null,null,null,null,null,0]
[null,null,null,null,null,null,null,null,null,null,null,null,null,null,null,null,null,null,null,null,null,null,null,null,null,null,null,0]
["10.2",null,null,null,null,null,null,null,null,null,null,null,null,null,null,null,null,null,null,null,null,null,null,null,null,null,null,0]
[null,null,null,null,null,null,null,null,null,null,null,null,null,null,null,null,null,null,null,null,null,null,null,null,null,null,null,0]
["10.2.1",null,null,null,null,null,null,null,null,null,null,null,null,null,null,null,null,null,null,null,null,null,null,null,null,null,null,{"$f":"SUM(E72:AA72)","v":0}]
[null,null,null,null,null,null,null,null,null,null,null,null,null,null,null,null,null,null,null,null,null,null,null,null,null,null,null,0]
["10.2.2",null,null,null,null,null,null,null,null,null,null,null,null,null,null,null,null,null,null,null,null,null,null,null,null,null,null,0]
[null,null,null,null,null,null,null,null,null,null,null,null,null,null,null,null,null,null,null,null,null,null,null,null,null,null,null,0]
["10.2.3",null,null,null,null,null,null,null,null,null,null,null,null,null,null,null,null,null,null,null,null,null,null,null,null,null,null,0]
[null,null,null,null,null,null,null,null,null,null,null,null,null,null,null,null,null,null,null,null,null,null,null,null,null,null,null,0]
["11.1",null,null,null,null,null,null,null,null,null,null,null,null,null,null,null,null,null,null,null,null,null,null,null,null,null,null,0]
[null,null,null,null,null,null,null,null,null,null,null,null,null,null,null,null,null,null,null,null,null,null,null,null,null,null,null,0]
["11.2",null,null,null,null,null,null,null,null,null,null,null,null,null,null,null,null,null,null,null,null,null,null,null,null,null,null,0]
[null,null,null,null,null,null,null,null,null,null,null,null,null,null,null,null,null,null,null,null,null,null,null,null,null,null,null,0]
["11.3",null,null,null,null,null,null,null,null,null,null,null,null,null,null,null,null,null,null,null,null,null,null,null,null,null,null,0]
[null,null,null,null,null,null,null,null,null,null,null,null,null,null,null,null,null,null,null,null,null,null,null,null,null,null,null,0]
["11.4",null,null,null,null,null,null,null,null,null,null,null,null,null,null,null,null,null,null,null,null,null,null,null,null,null,null,0]
[null,null,null,null,null,null,null,null,null,null,null,null,null,null,null,null,null,null,null,null,null,null,null,null,null,null,null,0]
["11.5",null,null,null,null,null,null,null,null,null,null,null,null,null,null,null,null,null,null,null,null,null,null,null,null,null,null,0]
[null,null,null,null,null,null,null,null,null,null,null,null,null,null,null,null,null,null,null,null,null,null,null,null,null,null,null,0]
["11.6",null,null,null,null,null,null,null,null,null,null,null,null,null,null,null,null,null,null,null,null,null,null,null,null,null,null,0]
[null,null,null,null,null,null,null,null,null,null,null,null,null,null,null,null,null,null,null,null,null,null,null,null,null,null,null,0]
["12.1",null,null,null,null,null,null,null,null,null,null,null,null,null,null,null,null,null,null,null,null,null,null,null,null,null,null,0]
[null,null,null,null,null,null,null,null,null,null,null,null,null,null,null,null,null,null,null,null,null,null,null,null,null,null,null,0]
["12.1.1",null,null,null,null,null,null,null,null,null,null,null,null,null,null,null,null,null,null,null,null,null,null,null,null,null,null,0]
[null,null,null,null,null,null,null,null,null,null,null,null,null,null,null,null,null,null,null,null,null,null,null,null,null,null,null,0]
["12.2",null,null,null,null,null,null,null,null,null,null,null,null,null,null,null,null,null,null,null,null,null,null,null,null,null,null,0]
[null,null,null,null,null,null,null,null,null,null,null,null,null,null,null,null,null,null,null,null,null,null,null,null,null,null,null,0]
["12.3",null,null,null,null,null,null,null,null,null,null,null,null,null,null,null,null,null,null,null,null,null,null,null,null,null,null,0]
[null,null,null,null,null,null,null,null,null,null,null,null,null,null,null,null,null,null,null,null,null,null,null,null,null,null,null,0]
["12.4",null,null,null,null,null,null,null,null,null,null,null,null,null,null,null,null,null,null,null,null,null,null,null,null,null,null,0]
[null,null,null,null,null,null,null,null,null,null,null,null,null,null,null,null,null,null,null,null,null,null,null,null,null,null,null,0]
[]
[{"$f":"#REF!","v":{"$error":"#REF!"}},null,null,"PREVISTO",{"$f":"(E8+E10+E12+E14+E16+E18+E20+E22+E24+E26+E28+E30+E32+E34+E36+E38+E40+E42+E44+E46+E48+E50+E52+E54+E56+E58+E60+E62+E64+E66+E68+E70+E72+E74+E76+E78+E92+E80+E82+E84+E86+E88+E90+E94+E96+E98)/$C$102","v":{"$error":"#DIV/0!"}},{"$f":"(F8+F10+F12+F14+F16+F18+F20+F22+F24+F26+F28+F30+F32+F34+F36+F38+F40+F42+F44+F46+F48+F50+F52+F54+F56+F58+F60+F62+F64+F66+F68+F70+F72+F74+F76+F78+F92+F80+F82+F84+F86+F88+F90+F94+F96+F98)/$C$102","v":{"$error":"#DIV/0!"}},{"$error":"#DIV/0!"},{"$error":"#DIV/0!"},{"$error":"#DIV/0!"},{"$error":"#DIV/0!"},{"$error":"#DIV/0!"},{"$error":"#DIV/0!"},{"$error":"#DIV/0!"},{"$error":"#DIV/0!"},{"$error":"#DIV/0!"},{"$error":"#DIV/0!"},{"$error":"#DIV/0!"},{"$error":"#DIV/0!"},{"$error":"#DIV/0!"},{"$error":"#DIV/0!"},{"$error":"#DIV/0!"},{"$error":"#DIV/0!"},{"$error":"#DIV/0!"},{"$error":"#DIV/0!"},{"$error":"#DIV/0!"},{"$error":"#DIV/0!"},{"$error":"#DIV/0!"},{"$f":"SUM(E101:AA101)","v":{"$error":"#DIV/0!"}}]
["Total. Ações",null,{"$f":"COUNTIF(C8:C99,\"> \")","v":0},"REALIZADO",{"$f":"(E9+E11+E13+E15+E17+E19+E21+E23+E25+E27+E29+E31+E33+E35+E37+E39+E41+E43+E45+E47+E49+E51+E53+E55+E57+E59+E61+E63+E65+E67+E69+E71+E73+E75+E77+E79+E93+E81+E83+E85+E87+E89+E91+E95+E97+E99)/$C$102","v":{"$error":"#DIV/0!"}},{"$f":"(F9+F11+F13+F15+F17+F19+F21+F23+F25+F27+F29+F31+F33+F35+F37+F39+F41+F43+F45+F47+F49+F51+F53+F55+F57+F59+F61+F63+F65+F67+F69+F71+F73+F75+F77+F79+F93+F81+F83+F85+F87+F89+F91+F95+F97+F99)/$C$102","v":{"$error":"#DIV/0!"}},{"$error":"#DIV/0!"},{"$error":"#DIV/0!"},{"$error":"#DIV/0!"},{"$error":"#DIV/0!"},{"$error":"#DIV/0!"},{"$error":"#DIV/0!"},{"$error":"#DIV/0!"},{"$error":"#DIV/0!"},{"$error":"#DIV/0!"},{"$error":"#DIV/0!"},{"$error":"#DIV/0!"},{"$error":"#DIV/0!"},{"$error":"#DIV/0!"},{"$error":"#DIV/0!"},{"$error":"#DIV/0!"},{"$error":"#DIV/0!"},{"$error":"#DIV/0!"},{"$error":"#DIV/0!"},{"$error":"#DIV/0!"},{"$error":"#DIV/0!"},{"$error":"#DIV/0!"},{"$f":"SUM(E102:AA102)","v":{"$error":"#DIV/0!"}}]
[]
[null,null,null,null,"Fev/12","Mar/12","Abr/12","Mai/12","Jun/12","Jul/12","Ago/12","Set/12","Out/12","Nov/12","Dez/12","Jan/13","Fev/13","Mar/13","Abr/13","Mai/13","Jun/13","Jul/13","Ago/13","Set/13","Out/13","Nov/13","Dez/13"]
[null,null,null,"Previsto",{"$f":"E101","v":{"$error":"#DIV/0!"}},{"$f":"E105+F101","v":{"$error":"#DIV/0!"}},{"$error":"#DIV/0!"},{"$error":"#DIV/0!"},{"$error":"#DIV/0!"},{"$error":"#DIV/0!"},{"$error":"#DIV/0!"},{"$error":"#DIV/0!"},{"$error":"#DIV/0!"},{"$error":"#DIV/0!"},{"$error":"#DIV/0!"},{"$error":"#DIV/0!"},{"$f":"P105+Q101","v":{"$error":"#DIV/0!"}},{"$error":"#DIV/0!"},{"$error":"#DIV/0!"},null,null,null,null,null,null,null,null,{"$f":"MAX(E105:AA105)","v":{"$error":"#DIV/0!"}}]
[null,null,null,"Realizado",{"$f":"E102","v":{"$error":"#DIV/0!"}},{"$error":"#DIV/0!"},{"$error":"#DIV/0!"},{"$error":"#DIV/0!"},{"$error":"#DIV/0!"},{"$error":"#DIV/0!"},{"$error":"#DIV/0!"},{"$error":"#DIV/0!"},{"$error":"#DIV/0!"},{"$error":"#DIV/0!"},{"$error":"#DIV/0!"},{"$error":"#DIV/0!"},{"$error":"#DIV/0!"},{"$error":"#DIV/0!"},{"$error":"#DIV/0!"},null,null,null,null,null,null,null,null,{"$f":"MAX(E106:AA106)","v":{"$error":"#DIV/0!"}}]

{"sheet":"Monitoramento","index":1,"n_rows":42,"n_cols":9,"rows_kept":42,"cut":false,"hidden":false,"merged":[[38,3,38,7],[33,0,33,7],[35,0,35,2],[35,3,35,7],[38,0,38,2],[36,0,36,2],[36,3,36,7],[37,0,37,2],[37,3,37,7],[24,0,24,7],[22,0,22,7],[27,0,27,7],[29,4,29,5],[29,0,30,0],[29,1,30,1],[29,6,30,6],[29,7,30,7],[29,2,29,3],[28,1,28,3],[28,4,28,6],[8,0,8,7],[43,0,43,2],[43,3,43,7],[39,0,39,7],[41,0,41,2],[41,3,41,7],[42,0,42,2],[42,3,42,7],[26,0,26,7],[17,0,17,7],[19,0,19,7],[21,0,21,7],[9,2,9,4],[11,0,11,7],[13,0,13,7],[15,0,15,7]]}
[]
[null,null,null,"Secretaria de Estado de Gestão e Planejamento",null,null,null,null,1]
[null,null,null,"Superintendência de Modernização Institucional"]
[null,null,null,"Gerência de Escritório de Processos"]
[]
[null,null,null,{"$f":"CORP.PROC001.Plano!#REF!","v":{"$error":"#REF!"}}]
[null,null,null,{"$f":"CORP.PROC001.Plano!#REF!","v":{"$error":"#REF!"}}]
[]
["RELATÓRIO DE ACOMPANHAMENTO"]
[null,null,"MÊS/ANO"]
[]
["OBJETIVO: "]
[]
["ESCOPO DO PROCESSO: "]
[]
["RESPONSÁVEL PELO PROCESSO: "]
[]
["DEMAIS ENVOLVIDOS: "]
[]
["CRONOGRAMA DO PROJETO"]
[]
[]
["IMPLANTAÇÃO DAS MELHORIAS"]
[]
[]
[]
["PLANO DE IMPLANTAÇÃO"]
["Legenda",null,null,null,null,null,null,null,0]
[2,3,null,null,1,null,null,0]
["SOLUÇÃO","RESPONSÁVEL","PRAZO",null,"EXECUÇÃO",null,"SITUAÇÃO","CONSIDERAÇÕES","SE(F3=0;SE(I3=1;\"Cancelado\";SE(D3>HOJE();\"Não iniciado e no prazo\";\"Atrasado\"));SE(F3=1;\"Concluído\";SE(D3<HOJE();\"Atrasado\";\"Iniciado e no prazo\")))"]
[null,null,"INÍCIO","TÉRMINO","PREVISTO","REALIZADO"]
[]
[]
["RESULTADOS ALCANÇADOS (NÃO MENSURÁVEIS)"]
[]
["AÇÃO",null,null,"BENEFÍCIO"]
[]
[]
[]
["RESULTADOS ALCANÇADOS (MENSURÁVEIS)"]
[]
["AÇÃO",null,null,"BENEFÍCIO"]